[Event "Titled Tuesday Blitz November 08 Late 2022"]
[White "Kavutskiy, Konstantin"]
[Black "Do Nascimento,Christian Almeida"]
[WhiteFideId "2026384"]
[BlackFideId "2143801"]
[WhiteElo "2338"]
[BlackElo "2079"]
[Result "1-0"]
[Round "10"]
[TimeControl "180+1"]
[Date "2022.11.09"]
[WhiteClock "0:00:52"]
[BlackClock "0:00:06"]

1. d4 {[%clk 0:03:00]}  Nf6 {[%clk 0:02:53]} 2. c4 {[%clk 0:03:00]}  g6 {[%clk 0:02:54]} 3. Nc3 {[%clk 0:02:59]}  d6 {[%clk 0:02:54]} 4. e4 {[%clk 0:02:59]}  Bg7 {[%clk 0:02:54]} 5. h3 {[%clk 0:02:59]}  O-O {[%clk 0:02:53]} 6. Be3 {[%clk 0:02:59]}  e5 {[%clk 0:02:52]} 7. d5 {[%clk 0:02:58]}  a5 {[%clk 0:02:52]} 8. g4 {[%clk 0:02:58]}  Na6 {[%clk 0:02:52]} 9. Nge2 {[%clk 0:02:57]}  Ne8 {[%clk 0:02:46]} 10. Ng3 {[%clk 0:02:57]}  f5 {[%clk 0:02:41]} 11. gxf5 {[%clk 0:02:49]}  gxf5 {[%clk 0:02:41]} 12. exf5 {[%clk 0:02:49]}  Bxf5 {[%clk 0:02:29]} 13. h4 {[%clk 0:02:47]}  Qf6 {[%clk 0:02:13]} 14. Nxf5 {[%clk 0:02:41]}  Qxf5 {[%clk 0:02:14]} 15. Bh3 {[%clk 0:02:41]}  Qf3 {[%clk 0:01:56]} 16. Be6+ {[%clk 0:02:35]}  Kh8 {[%clk 0:01:56]} 17. Qxf3 {[%clk 0:02:30]}  Rxf3 {[%clk 0:01:57]} 18. Ke2 {[%clk 0:02:30]}  Rf8 {[%clk 0:01:55]} 19. Rag1 {[%clk 0:02:30]}  b6 {[%clk 0:01:38]} 20. h5 {[%clk 0:02:27]}  Nc5 {[%clk 0:01:21]} 21. h6 {[%clk 0:02:26]}  Bf6 {[%clk 0:01:21]} 22. Rg4 {[%clk 0:02:25]}  Nxe6 {[%clk 0:01:16]} 23. dxe6 {[%clk 0:02:25]}  Rg8 {[%clk 0:01:17]} 24. Rhg1 {[%clk 0:02:20]}  Rxg4 {[%clk 0:01:16]} 25. Rxg4 {[%clk 0:02:21]}  c6 {[%clk 0:01:17]} 26. b3 {[%clk 0:02:14]}  Nc7 {[%clk 0:01:08]} 27. Ne4 {[%clk 0:02:08]}  Be7 {[%clk 0:01:08]} 28. Bg5 {[%clk 0:02:06]}  Bxg5 {[%clk 0:00:35]} 29. Nxg5 {[%clk 0:02:07]}  Kg8 {[%clk 0:00:35]} 30. Nf7+ {[%clk 0:01:47]}  Kf8 {[%clk 0:00:34]} 31. Rg7 {[%clk 0:01:45]}  Nxe6 {[%clk 0:00:30]} 32. Rxh7 {[%clk 0:01:45]}  Ra7 {[%clk 0:00:29]} 33. Rh8+ {[%clk 0:01:35]}  Ke7 {[%clk 0:00:21]} 34. Ke3 {[%clk 0:01:00]}  a4 {[%clk 0:00:15]} 35. h7 {[%clk 0:00:55]}  Kxf7 {[%clk 0:00:09]} 36. Rb8 {[%clk 0:00:52]}  axb3 {[%clk 0:00:06]} 37. axb3 {[%clk 0:00:52]} 1-0


[Site "https://www.chess.com"]

[Event "Titled Tuesday Blitz November 08 Late 2022"]
[White "Kim, Sergey"]
[Black "Papayan, Oleg"]
[WhiteFideId "13700570"]
[BlackFideId "4193911"]
[WhiteElo "2583"]
[BlackElo "2153"]
[Result "1-0"]
[Round "10"]
[TimeControl "180+1"]
[Date "2022.11.09"]
[WhiteClock "0:00:47"]
[BlackClock "0:00:01"]

1. d4 {[%clk 0:03:00]}  Nf6 {[%clk 0:02:59]} 2. c4 {[%clk 0:03:01]}  e6 {[%clk 0:03:00]} 3. Nc3 {[%clk 0:03:01]}  Bb4 {[%clk 0:03:00]} 4. Qc2 {[%clk 0:03:01]}  O-O {[%clk 0:02:59]} 5. a3 {[%clk 0:03:01]}  Bxc3+ {[%clk 0:02:59]} 6. Qxc3 {[%clk 0:03:02]}  d5 {[%clk 0:02:59]} 7. Nf3 {[%clk 0:03:02]}  b6 {[%clk 0:02:51]} 8. g3 {[%clk 0:03:01]}  dxc4 {[%clk 0:02:50]} 9. Qxc4 {[%clk 0:03:01]}  Bb7 {[%clk 0:02:45]} 10. Bg2 {[%clk 0:03:01]}  Nbd7 {[%clk 0:02:45]} 11. O-O {[%clk 0:03:01]}  c5 {[%clk 0:02:44]} 12. Rd1 {[%clk 0:03:01]}  Qe7 {[%clk 0:02:40]} 13. Bf4 {[%clk 0:03:00]}  Rac8 {[%clk 0:02:24]} 14. Rac1 {[%clk 0:02:59]}  cxd4 {[%clk 0:02:17]} 15. Qxd4 {[%clk 0:02:59]}  Rxc1 {[%clk 0:02:18]} 16. Rxc1 {[%clk 0:02:59]}  Bxf3 {[%clk 0:02:18]} 17. Bd6 {[%clk 0:02:59]}  Qe8 {[%clk 0:02:09]} 18. exf3 {[%clk 0:02:41]}  e5 {[%clk 0:02:08]} 19. Qd2 {[%clk 0:02:33]}  Nc5 {[%clk 0:01:56]} 20. Qd1 {[%clk 0:02:29]}  a5 {[%clk 0:01:21]} 21. Bxf8 {[%clk 0:02:27]}  Qxf8 {[%clk 0:01:19]} 22. Qe2 {[%clk 0:02:14]}  a4 {[%clk 0:01:10]} 23. Rd1 {[%clk 0:02:09]}  Qe7 {[%clk 0:00:49]} 24. f4 {[%clk 0:02:04]}  e4 {[%clk 0:00:48]} 25. h3 {[%clk 0:01:57]}  h5 {[%clk 0:00:40]} 26. Qe3 {[%clk 0:01:48]}  Qe6 {[%clk 0:00:27]} 27. Qd4 {[%clk 0:01:38]}  Qb3 {[%clk 0:00:21]} 28. Rd2 {[%clk 0:01:25]}  Qa2 {[%clk 0:00:21]} 29. Kh2 {[%clk 0:01:21]}  Qb1 {[%clk 0:00:19]} 30. Qc3 {[%clk 0:01:17]}  Nd3 {[%clk 0:00:11]} 31. Qc2 {[%clk 0:01:09]}  Qe1 {[%clk 0:00:08]} 32. Re2 {[%clk 0:01:06]}  Qa5 {[%clk 0:00:03]} 33. Qc8+ {[%clk 0:00:59]}  Kh7 {[%clk 0:00:03]} 34. Qf5+ {[%clk 0:00:58]}  Kg8 {[%clk 0:00:02]} 35. Bxe4 {[%clk 0:00:56]}  Nxe4 {[%clk 0:00:01]} 36. Qxe4 {[%clk 0:00:56]}  Nc5 {[%clk 0:00:02]} 37. Qe8+ {[%clk 0:00:53]}  Kh7 {[%clk 0:00:02]} 38. Qxf7 {[%clk 0:00:52]}  Kh6 {[%clk 0:00:02]} 39. Re8 {[%clk 0:00:48]}  Qd2 {[%clk 0:00:01]} 40. Rh8# {[%clk 0:00:47]} 1-0


[Site "https://www.chess.com"]

[Event "Titled Tuesday Blitz November 08 Late 2022"]
[White "Kobo, Ori"]
[Black "Sebag, Marie"]
[WhiteFideId "2812320"]
[BlackFideId "617822"]
[WhiteElo "2447"]
[BlackElo "2440"]
[Result "1-0"]
[Round "10"]
[TimeControl "180+1"]
[Date "2022.11.08"]
[WhiteClock "0:00:05"]
[BlackClock "0:00:02"]

1. e4 {[%clk 0:03:00]}  c5 {[%clk 0:02:59]} 2. Nc3 {[%clk 0:03:01]}  Nc6 {[%clk 0:02:58]} 3. Bb5 {[%clk 0:03:01]}  Nd4 {[%clk 0:02:58]} 4. Nf3 {[%clk 0:03:01]}  Nxb5 {[%clk 0:02:56]} 5. Nxb5 {[%clk 0:03:02]}  a6 {[%clk 0:02:57]} 6. Nc3 {[%clk 0:03:02]}  d6 {[%clk 0:02:56]} 7. d4 {[%clk 0:03:00]}  cxd4 {[%clk 0:02:56]} 8. Qxd4 {[%clk 0:03:01]}  e5 {[%clk 0:02:56]} 9. Qb4 {[%clk 0:03:00]}  h6 {[%clk 0:02:25]} 10. Be3 {[%clk 0:02:55]}  Nf6 {[%clk 0:02:13]} 11. O-O-O {[%clk 0:02:50]}  Qd7 {[%clk 0:01:48]} 12. Bb6 {[%clk 0:02:34]}  Be7 {[%clk 0:01:42]} 13. Nxe5 {[%clk 0:02:13]}  Qe6 {[%clk 0:01:14]} 14. Qa4+ {[%clk 0:01:57]}  Nd7 {[%clk 0:01:09]} 15. Nxd7 {[%clk 0:01:44]}  Bxd7 {[%clk 0:01:09]} 16. Qb3 {[%clk 0:01:45]}  O-O {[%clk 0:01:02]} 17. f3 {[%clk 0:01:33]}  Bc6 {[%clk 0:00:52]} 18. Nd5 {[%clk 0:01:24]}  Bxd5 {[%clk 0:00:50]} 19. Qxd5 {[%clk 0:01:20]}  Rac8 {[%clk 0:00:47]} 20. c3 {[%clk 0:01:10]}  Rc6 {[%clk 0:00:46]} 21. Be3 {[%clk 0:01:05]}  Rfc8 {[%clk 0:00:40]} 22. Kb1 {[%clk 0:01:03]}  b5 {[%clk 0:00:40]} 23. a3 {[%clk 0:01:02]}  Bf6 {[%clk 0:00:36]} 24. Rd3 {[%clk 0:00:58]}  Qe7 {[%clk 0:00:31]} 25. Rhd1 {[%clk 0:00:57]}  Qb7 {[%clk 0:00:28]} 26. Qf5 {[%clk 0:00:49]}  a5 {[%clk 0:00:26]} 27. Rxd6 {[%clk 0:00:46]}  b4 {[%clk 0:00:26]} 28. Rxc6 {[%clk 0:00:32]}  Qxc6 {[%clk 0:00:21]} 29. Qd5 {[%clk 0:00:07]}  Qa4 {[%clk 0:00:20]} 30. cxb4 {[%clk 0:00:03]}  axb4 {[%clk 0:00:20]} 31. Rc1 {[%clk 0:00:04]}  Ra8 {[%clk 0:00:18]} 32. Qc6 {[%clk 0:00:02]}  Qa5 {[%clk 0:00:13]} 33. Qc5 {[%clk 0:00:03]}  Qa4 {[%clk 0:00:12]} 34. Qc6 {[%clk 0:00:03]}  bxa3 {[%clk 0:00:09]} 35. Qxa4 {[%clk 0:00:03]}  Rxa4 {[%clk 0:00:09]} 36. bxa3 {[%clk 0:00:03]}  Rxa3 {[%clk 0:00:09]} 37. Bf4 {[%clk 0:00:03]}  Ra1+ {[%clk 0:00:08]} 38. Kc2 {[%clk 0:00:03]}  Ra2+ {[%clk 0:00:08]} 39. Kd3 {[%clk 0:00:04]}  Rxg2 {[%clk 0:00:08]} 40. Bg3 {[%clk 0:00:04]}  Bg5 {[%clk 0:00:07]} 41. Rc8+ {[%clk 0:00:04]}  Kh7 {[%clk 0:00:07]} 42. Rc7 {[%clk 0:00:05]}  Kg6 {[%clk 0:00:06]} 43. f4 {[%clk 0:00:05]}  Bf6 {[%clk 0:00:06]} 44. e5 {[%clk 0:00:05]}  Bd8 {[%clk 0:00:05]} 45. Rd7 {[%clk 0:00:05]}  Ba5 {[%clk 0:00:05]} 46. Ke4 {[%clk 0:00:05]}  Re2+ {[%clk 0:00:05]} 47. Kf3 {[%clk 0:00:06]}  Ra2 {[%clk 0:00:05]} 48. Rd6+ {[%clk 0:00:06]}  Kh7 {[%clk 0:00:04]} 49. Rd7 {[%clk 0:00:06]}  Kg8 {[%clk 0:00:04]} 50. Kg4 {[%clk 0:00:06]}  Ra4 {[%clk 0:00:03]} 51. h4 {[%clk 0:00:06]}  g6 {[%clk 0:00:02]} 52. Rd5 {[%clk 0:00:05]} 1-0


[Site "https://www.chess.com"]

[Event "Titled Tuesday Blitz November 08 Late 2022"]
[White "Korkmaz, Necmettin"]
[Black "Tokhirjonova, Gulrukhbegim"]
[WhiteFideId "6303285"]
[BlackFideId "14203626"]
[WhiteElo "2094"]
[BlackElo "2236"]
[Result "0-1"]
[Round "10"]
[TimeControl "180+1"]
[Date "2022.11.09"]
[WhiteClock "0:00:51"]
[BlackClock "0:00:48"]

1. e4 {[%clk 0:03:00]}  e5 {[%clk 0:02:59]} 2. Nf3 {[%clk 0:02:59]}  Nc6 {[%clk 0:03:00]} 3. Bc4 {[%clk 0:02:58]}  Nf6 {[%clk 0:03:00]} 4. d4 {[%clk 0:02:57]}  exd4 {[%clk 0:02:57]} 5. O-O {[%clk 0:02:57]}  Bc5 {[%clk 0:02:40]} 6. e5 {[%clk 0:02:51]}  d5 {[%clk 0:02:38]} 7. exf6 {[%clk 0:02:47]}  dxc4 {[%clk 0:02:38]} 8. Re1+ {[%clk 0:02:47]}  Be6 {[%clk 0:02:36]} 9. Ng5 {[%clk 0:02:47]}  Qd5 {[%clk 0:02:33]} 10. Nc3 {[%clk 0:02:47]}  Qf5 {[%clk 0:02:20]} 11. g4 {[%clk 0:02:39]}  Qxf6 {[%clk 0:02:06]} 12. Nd5 {[%clk 0:02:37]}  Qd8 {[%clk 0:01:59]} 13. Rxe6+ {[%clk 0:02:17]}  fxe6 {[%clk 0:02:00]} 14. Nxe6 {[%clk 0:02:18]}  Qd7 {[%clk 0:01:37]} 15. Nexc7+ {[%clk 0:02:08]}  Kd8 {[%clk 0:01:21]} 16. Bg5+ {[%clk 0:02:03]}  Kc8 {[%clk 0:01:20]} 17. Qf3 {[%clk 0:01:46]}  Rb8 {[%clk 0:01:19]} 18. Re1 {[%clk 0:01:44]}  Bd6 {[%clk 0:01:09]} 19. Ne6 {[%clk 0:01:43]}  Re8 {[%clk 0:01:04]} 20. Qe2 {[%clk 0:01:15]}  Bxh2+ {[%clk 0:00:56]} 21. Kxh2 {[%clk 0:01:13]}  Qxd5 {[%clk 0:00:57]} 22. Bf4 {[%clk 0:01:11]}  Kd7 {[%clk 0:00:52]} 23. Bxb8 {[%clk 0:00:59]}  Rxe6 {[%clk 0:00:51]} 24. Qxe6+ {[%clk 0:00:58]}  Qxe6 {[%clk 0:00:52]} 25. Rxe6 {[%clk 0:00:58]}  Kxe6 {[%clk 0:00:52]} 26. Bf4 {[%clk 0:00:56]}  Nb4 {[%clk 0:00:46]} 27. c3 {[%clk 0:00:53]}  dxc3 {[%clk 0:00:44]} 28. bxc3 {[%clk 0:00:54]}  Nxa2 {[%clk 0:00:45]} 29. Bd2 {[%clk 0:00:54]}  b5 {[%clk 0:00:45]} 30. Kg3 {[%clk 0:00:53]}  b4 {[%clk 0:00:45]} 31. cxb4 {[%clk 0:00:53]}  c3 {[%clk 0:00:46]} 32. Be3 {[%clk 0:00:51]}  c2 {[%clk 0:00:47]} 33. b5 {[%clk 0:00:50]}  c1=Q {[%clk 0:00:46]} 34. Bxc1 {[%clk 0:00:50]}  Nxc1 {[%clk 0:00:47]} 35. Kf4 {[%clk 0:00:50]}  Ne2+ {[%clk 0:00:47]} 36. Ke3 {[%clk 0:00:51]}  Nc3 {[%clk 0:00:47]} 37. b6 {[%clk 0:00:50]}  axb6 {[%clk 0:00:48]} 38. f4 {[%clk 0:00:50]}  Nd5+ {[%clk 0:00:48]} 39. Ke4 {[%clk 0:00:50]}  Nxf4 {[%clk 0:00:47]} 40. Kxf4 {[%clk 0:00:51]}  Kf6 {[%clk 0:00:48]} 0-1


[Site "https://www.chess.com"]

[Event "Titled Tuesday Blitz November 08 Late 2022"]
[White "Kovacevic, Radmila"]
[Black "Hoffmann, Asa"]
[WhiteFideId "933171"]
[BlackFideId "2001470"]
[WhiteElo "2208"]
[BlackElo "2117"]
[Result "1-0"]
[Round "10"]
[TimeControl "180+1"]
[Date "2022.11.09"]
[WhiteClock "0:00:13"]
[BlackClock "0:00:17"]

1. e4 {[%clk 0:02:58]}  d6 {[%clk 0:02:55]} 2. d4 {[%clk 0:02:57]}  Nf6 {[%clk 0:02:49]} 3. Nc3 {[%clk 0:02:58]}  c6 {[%clk 0:02:49]} 4. f3 {[%clk 0:02:55]}  Nbd7 {[%clk 0:02:48]} 5. Bc4 {[%clk 0:02:53]}  d5 {[%clk 0:02:46]} 6. Bb3 {[%clk 0:02:51]}  e6 {[%clk 0:02:43]} 7. e5 {[%clk 0:02:48]}  Ng8 {[%clk 0:02:40]} 8. Be3 {[%clk 0:02:42]}  c5 {[%clk 0:02:38]} 9. Ba4 {[%clk 0:02:39]}  a6 {[%clk 0:02:37]} 10. dxc5 {[%clk 0:02:36]}  Ne7 {[%clk 0:02:34]} 11. b4 {[%clk 0:02:22]}  Nc6 {[%clk 0:02:33]} 12. Bxc6 {[%clk 0:02:19]}  bxc6 {[%clk 0:02:32]} 13. f4 {[%clk 0:02:12]}  a5 {[%clk 0:02:26]} 14. a3 {[%clk 0:02:10]}  Ba6 {[%clk 0:02:25]} 15. Nf3 {[%clk 0:02:08]}  Be7 {[%clk 0:02:16]} 16. Nd4 {[%clk 0:02:05]}  Qc8 {[%clk 0:02:14]} 17. Qg4 {[%clk 0:01:59]}  g6 {[%clk 0:02:14]} 18. Kf2 {[%clk 0:01:56]}  h5 {[%clk 0:02:13]} 19. Qg3 {[%clk 0:01:54]}  Bc4 {[%clk 0:02:11]} 20. h4 {[%clk 0:01:50]}  Qb7 {[%clk 0:02:01]} 21. Rhb1 {[%clk 0:01:47]}  axb4 {[%clk 0:01:57]} 22. axb4 {[%clk 0:01:43]}  Rxa1 {[%clk 0:01:56]} 23. Rxa1 {[%clk 0:01:43]}  Kf8 {[%clk 0:01:40]} 24. b5 {[%clk 0:01:41]}  Nxc5 {[%clk 0:01:34]} 25. Nxc6 {[%clk 0:01:32]}  Ne4+ {[%clk 0:01:25]} 26. Nxe4 {[%clk 0:01:31]}  dxe4 {[%clk 0:01:25]} 27. Nxe7 {[%clk 0:01:23]}  Qxe7 {[%clk 0:01:19]} 28. Ra8+ {[%clk 0:01:16]}  Kg7 {[%clk 0:01:18]} 29. Rxh8 {[%clk 0:01:15]}  Kxh8 {[%clk 0:01:18]} 30. b6 {[%clk 0:01:11]}  Qd7 {[%clk 0:01:09]} 31. Qg5 {[%clk 0:01:06]}  Qd1 {[%clk 0:01:07]} 32. b7 {[%clk 0:00:55]}  Qe2+ {[%clk 0:01:05]} 33. Kg3 {[%clk 0:00:52]}  Qxe3+ {[%clk 0:01:05]} 34. Kh2 {[%clk 0:00:51]}  Qb6 {[%clk 0:00:57]} 35. Qe7 {[%clk 0:00:31]}  Kg7 {[%clk 0:00:48]} 36. Qf6+ {[%clk 0:00:27]}  Kg8 {[%clk 0:00:47]} 37. Qe7 {[%clk 0:00:25]}  Bb5 {[%clk 0:00:41]} 38. f5 {[%clk 0:00:17]}  gxf5 {[%clk 0:00:30]} 39. Qg5+ {[%clk 0:00:15]}  Kf8 {[%clk 0:00:29]} 40. Qh6+ {[%clk 0:00:13]}  Ke8 {[%clk 0:00:29]} 41. Qh8+ {[%clk 0:00:13]}  Kd7 {[%clk 0:00:29]} 42. Qxh5 {[%clk 0:00:13]}  Qxb7 {[%clk 0:00:27]} 43. Qxf7+ {[%clk 0:00:13]}  Kc6 {[%clk 0:00:26]} 44. Qxe6+ {[%clk 0:00:13]}  Kc5 {[%clk 0:00:27]} 45. Qxf5 {[%clk 0:00:13]}  Qd5 {[%clk 0:00:26]} 46. h5 {[%clk 0:00:12]}  Bd7 {[%clk 0:00:26]} 47. Qf2+ {[%clk 0:00:12]}  Qd4 {[%clk 0:00:25]} 48. Qxd4+ {[%clk 0:00:12]}  Kxd4 {[%clk 0:00:25]} 49. h6 {[%clk 0:00:12]}  Bf5 {[%clk 0:00:25]} 50. e6 {[%clk 0:00:13]}  e3 {[%clk 0:00:24]} 51. e7 {[%clk 0:00:12]}  Bg6 {[%clk 0:00:21]} 52. h7 {[%clk 0:00:13]}  e2 {[%clk 0:00:21]} 53. h8=Q+ {[%clk 0:00:12]}  Ke3 {[%clk 0:00:19]} 54. Qe5+ {[%clk 0:00:12]}  Kd2 {[%clk 0:00:19]} 55. e8=Q {[%clk 0:00:11]}  Bxe8 {[%clk 0:00:18]} 56. Qxe8 {[%clk 0:00:12]}  e1=Q {[%clk 0:00:17]} 57. Qxe1+ {[%clk 0:00:12]}  Kxe1 {[%clk 0:00:17]} 58. c4 {[%clk 0:00:13]} 1-0


[Site "https://www.chess.com"]

[Event "Titled Tuesday Blitz November 08 Late 2022"]
[White "Krishnan, Varun"]
[Black "Guha, Eshan"]
[WhiteFideId "5054508"]
[BlackFideId "30958628"]
[WhiteElo "2537"]
[BlackElo "2387"]
[Result "1-0"]
[Round "10"]
[TimeControl "180+1"]
[Date "2022.11.09"]
[WhiteClock "0:00:56"]
[BlackClock "0:00:09"]

1. d4 {[%clk 0:03:00]}  Nf6 {[%clk 0:02:58]} 2. c4 {[%clk 0:03:00]}  c5 {[%clk 0:02:58]} 3. Nf3 {[%clk 0:02:58]}  cxd4 {[%clk 0:02:58]} 4. Nxd4 {[%clk 0:02:59]}  e5 {[%clk 0:02:59]} 5. Nb5 {[%clk 0:02:58]}  d5 {[%clk 0:02:59]} 6. cxd5 {[%clk 0:02:57]}  Bb4+ {[%clk 0:03:00]} 7. Bd2 {[%clk 0:02:54]}  Bc5 {[%clk 0:02:59]} 8. e4 {[%clk 0:02:42]}  Nxe4 {[%clk 0:02:54]} 9. Qa4 {[%clk 0:02:41]}  Bxf2+ {[%clk 0:02:33]} 10. Kd1 {[%clk 0:02:39]}  Nc5 {[%clk 0:02:01]} 11. Qa3 {[%clk 0:02:11]}  O-O {[%clk 0:01:44]} 12. d6 {[%clk 0:02:08]}  Bg4+ {[%clk 0:01:38]} 13. Be2 {[%clk 0:02:07]}  Bxe2+ {[%clk 0:01:06]} 14. Kxe2 {[%clk 0:02:08]}  Qh4 {[%clk 0:00:46]} 15. Nc7 {[%clk 0:02:01]}  Qe4+ {[%clk 0:00:41]} 16. Kxf2 {[%clk 0:01:49]}  Nd3+ {[%clk 0:00:40]} 17. Kf1 {[%clk 0:01:49]}  Qd4 {[%clk 0:00:30]} 18. Ke2 {[%clk 0:01:41]}  Qe4+ {[%clk 0:00:26]} 19. Kf1 {[%clk 0:01:31]}  Qd4 {[%clk 0:00:25]} 20. Ke2 {[%clk 0:01:15]}  Qe4+ {[%clk 0:00:23]} 21. Kd1 {[%clk 0:01:15]}  Nf2+ {[%clk 0:00:23]} 22. Kc1 {[%clk 0:01:15]}  Nxh1 {[%clk 0:00:19]} 23. Nxa8 {[%clk 0:01:12]}  Na6 {[%clk 0:00:18]} 24. Nc7 {[%clk 0:01:11]}  Rc8 {[%clk 0:00:14]} 25. Nc3 {[%clk 0:01:09]}  Qxg2 {[%clk 0:00:13]} 26. d7 {[%clk 0:01:09]}  Rd8 {[%clk 0:00:12]} 27. Qe7 {[%clk 0:01:08]}  Qf1+ {[%clk 0:00:09]} 28. Nd1 {[%clk 0:00:57]}  Qf5 {[%clk 0:00:09]} 29. Qxd8# {[%clk 0:00:56]} 1-0


[Site "https://www.chess.com"]

[Event "Titled Tuesday Blitz November 08 Late 2022"]
[White "Kuzmicz, Krystian"]
[Black "Mazurkiewicz, Michal"]
[WhiteFideId "1119125"]
[BlackFideId "1124943"]
[WhiteElo "2380"]
[BlackElo "2063"]
[Result "0-1"]
[Round "10"]
[TimeControl "180+1"]
[Date "2022.11.08"]
[WhiteClock "0:00:22"]
[BlackClock "0:00:12"]

1. e4 {[%clk 0:02:58]}  d6 {[%clk 0:03:00]} 2. g3 {[%clk 0:02:56]}  Nf6 {[%clk 0:03:00]} 3. Bg2 {[%clk 0:02:57]}  g6 {[%clk 0:03:01]} 4. d3 {[%clk 0:02:57]}  Bg7 {[%clk 0:03:01]} 5. f4 {[%clk 0:02:58]}  O-O {[%clk 0:03:02]} 6. Nf3 {[%clk 0:02:58]}  c5 {[%clk 0:03:03]} 7. O-O {[%clk 0:02:59]}  Nc6 {[%clk 0:03:03]} 8. Nc3 {[%clk 0:02:59]}  Nd4 {[%clk 0:03:04]} 9. h3 {[%clk 0:02:59]}  e6 {[%clk 0:03:03]} 10. g4 {[%clk 0:02:59]}  Rb8 {[%clk 0:03:01]} 11. Nxd4 {[%clk 0:02:56]}  cxd4 {[%clk 0:03:01]} 12. Ne2 {[%clk 0:02:57]}  Nd7 {[%clk 0:03:02]} 13. f5 {[%clk 0:02:56]}  Qh4 {[%clk 0:02:40]} 14. Bd2 {[%clk 0:02:48]}  Bh6 {[%clk 0:02:19]} 15. Be1 {[%clk 0:02:45]}  Be3+ {[%clk 0:02:19]} 16. Kh1 {[%clk 0:02:46]}  Qh6 {[%clk 0:02:18]} 17. Bg3 {[%clk 0:02:42]}  Ne5 {[%clk 0:02:17]} 18. Nf4 {[%clk 0:02:40]}  exf5 {[%clk 0:02:09]} 19. exf5 {[%clk 0:02:38]}  gxf5 {[%clk 0:02:08]} 20. gxf5 {[%clk 0:01:58]}  Bxf5 {[%clk 0:02:08]} 21. Nh5 {[%clk 0:01:55]}  Bg6 {[%clk 0:01:45]} 22. Nf6+ {[%clk 0:01:55]}  Kh8 {[%clk 0:01:44]} 23. Bxe5 {[%clk 0:01:55]}  dxe5 {[%clk 0:01:44]} 24. Nd7 {[%clk 0:01:55]}  Bh5 {[%clk 0:01:26]} 25. Qe1 {[%clk 0:01:49]}  Bg4 {[%clk 0:01:24]} 26. Rf6 {[%clk 0:01:17]}  Qh5 {[%clk 0:01:17]} 27. Nxb8 {[%clk 0:00:58]}  Bxh3 {[%clk 0:01:13]} 28. Qg3 {[%clk 0:00:58]}  Bxg2+ {[%clk 0:00:39]} 29. Kxg2 {[%clk 0:00:57]}  Rg8 {[%clk 0:00:39]} 30. Qxg8+ {[%clk 0:00:43]}  Kxg8 {[%clk 0:00:40]} 31. Raf1 {[%clk 0:00:39]}  Qg5+ {[%clk 0:00:37]} 32. Kh1 {[%clk 0:00:34]}  Qh4+ {[%clk 0:00:35]} 33. Kg2 {[%clk 0:00:33]}  Qg4+ {[%clk 0:00:35]} 34. Kh2 {[%clk 0:00:33]}  Qh4+ {[%clk 0:00:14]} 35. Kg2 {[%clk 0:00:32]}  Bf4 {[%clk 0:00:14]} 36. R6xf4 {[%clk 0:00:25]}  exf4 {[%clk 0:00:15]} 37. Kf3 {[%clk 0:00:23]}  Qh3+ {[%clk 0:00:15]} 38. Ke2 {[%clk 0:00:22]}  Qc8 {[%clk 0:00:12]} 0-1


[Site "https://www.chess.com"]